fUSD/lending_fUSD_20250108
["ID","MTS","AMOUNT","RATE_DAILY","PERIOD"]
[348165502,1736361061966,-500.0,0.00012225,2]
[348165503,1736361061976,-154.20140276,0.00012225,2]
[348165504,1736361061986,-500.0,0.00012225,2]
[348165505,1736361061995,-520.47,0.00012225,2]
[348165506,1736361062005,-500.0,0.00012225,2]
[348165507,1736361062014,-537.99,0.00012225,2]
[348165508,1736361062024,-500.0,0.00012225,2]
[348165509,1736361062034,-500.0,0.00012225,2]
[348165510,1736361062044,-500.0,0.00012225,2]
[348165511,1736361062054,-500.0,0.00012225,2]
[348165512,1736361062063,-500.0,0.00012225,2]
[348165513,1736361062074,-500.0,0.00012225,2]
[348165514,1736361062084,-500.0,0.00012225,2]
[348165515,1736361062094,-620.56,0.00012225,2]
[348165516,1736361062103,-500.0,0.00012225,2]
[348165517,1736361062114,-756.73,0.00012225,2]
[348165518,1736361062124,-500.0,0.00012225,2]
[348165519,1736361062134,-500.0,0.00012225,2]
[348165520,1736361062144,-500.0,0.00012225,2]
[348165521,1736361062154,-500.0,0.00012225,2]
[348165522,1736361062164,-500.0,0.00012225,2]
[348165523,1736361062174,-500.0,0.00012225,2]
[348165524,1736361062185,-500.0,0.00012225,2]
[348165525,1736361062195,-500.0,0.00012225,2]
[348165526,1736361062204,-500.0,0.00012225,2]
[348165527,1736361062214,-500.0,0.00012225,2]
[348165528,1736361062224,-500.0,0.00012225,2]
[348165529,1736361062234,-500.0,0.00012225,2]
[348165530,1736361062244,-500.0,0.00012225,2]
[348165531,1736361062254,-500.0,0.00012225,2]
[348165532,1736361062264,-500.0,0.00012225,2]
[348165533,1736361062274,-500.0,0.00012225,2]
[348165534,1736361062284,-500.0,0.00012225,2]
[348165535,1736361062293,-500.0,0.00012225,2]
[348165536,1736361062303,-500.0,0.00012225,2]
[348165537,1736361062312,-500.0,0.00012225,2]
[348165538,1736361062322,-500.0,0.00012225,2]
[348165539,1736361062331,-742.3,0.00012225,2]
[348165540,1736361062342,-2040.84,0.00012226,2]
[348165541,1736361062353,-1144.17,0.00012226,2]
[348165542,1736361062364,-150.0,0.00012227,2]
[348165543,1736361062374,-1500.0,0.00012228,2]
[348165544,1736361062384,-150.0,0.00012232,2]
[348165545,1736361062394,-233.0111995,0.00012233,2]
[348165546,1736361062404,-150.0,0.00012233,2]
[348165547,1736361062414,-150.0,0.00012237,2]
[348165548,1736361062424,-150.0,0.00012237,2]
[348165549,1736361062433,-1500.0,0.00012239,2]
[348165550,1736361062442,-150.0,0.0001224,2]
[348165551,1736361062452,-1500.0,0.0001224,2]
[348165552,1736361062461,-150.0,0.0001224,2]
[348165553,1736361062470,-150.0,0.00012244,2]
[348165554,1736361062480,-150.0,0.00012245,2]
[348165555,1736361062490,-150.0,0.00012245,2]
[348165556,1736361062499,-150.0,0.00012246,2]
[348165557,1736361062509,-150.0,0.00012246,2]
[348165558,1736361062518,-1500.0,0.00012248,2]
[348165559,1736361062528,-150.0,0.00012249,2]
[348165560,1736361062537,-150.0,0.0001225,2]
[348165561,1736361062547,-150.0,0.00012253,2]
[348165562,1736361062556,-150.0,0.00012253,2]
[348165563,1736361062565,-150.0,0.00012254,2]
[348165564,1736361062575,-150.0,0.00012256,2]
[348165565,1736361062587,-150.0,0.00012257,2]
[348165566,1736361062597,-500.0,0.00012263,2]
[348165567,1736361062607,-500.0,0.00012263,2]
[348165568,1736361062623,-500.0,0.00012263,2]
[348165569,1736361062633,-500.0,0.00012263,2]
[348165570,1736361062644,-500.0,0.00012263,2]
[348165571,1736361062655,-500.0,0.00012263,2]
[348165572,1736361062664,-650.17,0.00012263,2]
[348165573,1736361062674,-1257.3,0.00012263,2]
[348165574,1736361062683,-703.55,0.00012263,2]
[348165575,1736361062692,-493.161191,0.00012263,2]
[348165576,1736361062702,-525.35,0.00012263,2]
[348165577,1736361062710,-548.498834,0.00012263,2]
[348165578,1736361062720,-1533.29,0.00012263,2]
[348165579,1736361062730,-500.0,0.00012263,2]
[348165580,1736361062739,-264.5978719,0.00012263,2]
[348165581,1736361062750,-1687.71,0.00012263,2]
[348165582,1736361062760,-500.0,0.00012263,2]
[348165583,1736361062769,-276.25,0.00012263,2]
[348165584,1736361062779,-730.26,0.00012263,2]
[348165585,1736361062788,-500.0,0.00012263,2]
[348165586,1736361062798,-243.73154811,0.00012263,2]
[348165587,1736361062808,-500.0,0.00012263,2]
[348165588,1736361062819,-612.53,0.00012263,2]
[348165589,1736361062829,-1195.02,0.00012263,2]
[348165590,1736361062839,-864.48,0.00012263,2]
[348165591,1736361062850,-866.56,0.00012263,2]
[348165592,1736361062859,-2351.61,0.00012263,2]
[348165593,1736361062875,-159.229129,0.00012263,2]
[348165594,1736361062885,-1174.98,0.00012263,2]
[348165595,1736361062895,-3989.43,0.00012263,2]
[348165596,1736361062906,-500.0,0.00012263,2]
[348165597,1736361062916,-165.126504,0.00012263,2]
[348165598,1736361062927,-3369.19,0.00012263,2]
[348165599,1736361062940,-500.0,0.00012263,2]
[348165600,1736361062952,-500.0,0.00012263,2]
[348165601,1736361062963,-502.87892929,0.00012263,2]
[348165602,1736361062974,-500.0,0.00012263,2]
[348165603,1736361062984,-500.0,0.00012263,2]
[348165604,1736361062994,-500.0,0.00012263,2]
[348165605,1736361063004,-1557.44,0.00012263,2]
[348165606,1736361063015,-1610.16,0.00012263,2]
[348165607,1736361063026,-570.47,0.00012264,2]
[348165608,1736361063036,-500.0,0.00012264,2]
[348165609,1736361063046,-700.7,0.00012264,2]
[348165610,1736361063056,-1537.89,0.00012264,2]
[348165611,1736361063067,-909.69,0.00012264,2]
[348165612,1736361063078,-571.33,0.00012264,2]
[348165613,1736361063088,-523.0,0.00012264,2]
[348165614,1736361063099,-500.0,0.00012264,2]
[348165615,1736361063110,-1030.33,0.00012264,2]
[348165616,1736361063124,-500.0,0.00012264,2]
[348165617,1736361063133,-646.03,0.00012264,2]
[348165618,1736361063143,-507.45,0.00012265,2]
[348165619,1736361063154,-1059.33,0.00012265,2]
[348165620,1736361063164,-1159.0,0.00012265,2]
[348165621,1736361063175,-582.08,0.00012265,2]
[348165622,1736361063186,-611.95,0.00012265,2]
[348165623,1736361063196,-625.52,0.00012265,2]
[348165624,1736361063206,-659.19,0.00012265,2]
[348165625,1736361063217,-573.07,0.00012265,2]
[348165626,1736361063227,-515.52,0.00012265,2]
[348165627,1736361063237,-500.0,0.00012265,2]
[348165628,1736361063247,-2616.42,0.00012265,2]
[348165629,1736361063258,-1474.36,0.00012265,2]
[348165630,1736361063268,-636.1,0.00012265,2]
[348165631,1736361063278,-1134.39,0.00012265,2]
[348165632,1736361063289,-895.0,0.00012265,2]
[348165633,1736361063299,-708.15,0.00012265,2]
[348165634,1736361063309,-736135.93878447,0.0001227,2]
[348165635,1736361063320,-150.0,0.00012271,2]
[348165636,1736361063329,-2152.0,0.00012274,2]
[348165637,1736361063339,-156.84302596,0.00012274,2]
[348165638,1736361063349,-150.0,0.00012274,2]
[348165639,1736361063359,-150.0,0.00012274,2]
[348165640,1736361063370,-153.84235597,0.00012274,2]
[348165641,1736361063380,-150.0,0.0001228,2]
[348165642,1736361063390,-150.0,0.00012282,2]
[348165643,1736361063399,-150.0,0.00012283,2]
[348165644,1736361063409,-150.0,0.00012284,2]
[348165645,1736361063418,-150.0,0.00012288,2]
[348165646,1736361063428,-2178.58,0.0001229,2]
[348165647,1736361063438,-150.0,0.00012293,2]
[348165648,1736361063447,-150.0,0.00012297,2]
[348165649,1736361063457,-1118.20718362,0.00012299,3]
[348165650,1736361063466,-489.0658,0.00012299,2]
[348165651,1736361063476,-500.0,0.00012299,2]
[348165652,1736361063486,-3793.54392235,0.00012299,2]
[348165653,1736361063495,-500.0,0.00012299,2]
[348165654,1736361063505,-500.0,0.00012299,2]
[348165655,1736361063516,-500.0,0.00012299,2]
[348165656,1736361063526,-2178.58,0.00012299,2]
[348165657,1736361063536,-2178.58,0.00012299,2]
[348165658,1736361063545,-2178.58,0.00012299,2]
[348165659,1736361063555,-2178.58,0.00012299,2]
[348165660,1736361063567,-2178.58,0.00012299,2]
[348165661,1736361063579,-2178.58,0.00012299,2]
[348165662,1736361063588,-2178.58,0.00012299,2]
[348165663,1736361063598,-2178.58,0.00012299,2]
[348165664,1736361063607,-2178.58,0.00012299,2]
[348165665,1736361063620,-2178.58,0.00012299,2]
[348165666,1736361063634,-2178.58,0.00012299,2]
[348165667,1736361063645,-2178.58,0.00012299,2]
[348165668,1736361063655,-2178.58,0.00012299,2]
[348165669,1736361063665,-2178.66064178,0.00012299,2]
[348165670,1736361063674,-1000.0,0.00012299,2]
[348165671,1736361063684,-2469927.62393002,0.000123,4]
[348165672,1736361063842,-10268.6530523,0.000123,2]
[348165673,1736361064111,-92800.0,0.000123,2]
[348165674,1736361064130,-19000.0,0.000123,2]
[348165675,1736361064143,-16895.0,0.000123,2]
[348165676,1736361064155,-34557.15445637,0.000123,2]
[348165677,1736361064167,-3592.07747779,0.000123,2]
[348165678,1736361064180,-80509.25207816,0.000123,2]
[348165679,1736361064192,-5089.5,0.000123,2]
[348165680,1736361064204,-20383.8027064,0.000123,2]
[348165681,1736361064236,-1153.45442979,0.000123,2]
[348165682,1736361064363,-505.849332,9.899e-05,2]
[348165683,1736361064376,-500.0,0.00010307,2]
[348165684,1736361064386,-500.0,0.00010581,2]
[348165685,1736361064397,-500.0,0.00010855,2]
[348165686,1736361064407,-500.0,0.00011129,2]
[348165687,1736361064417,-500.0,0.00011403,2]
[348165688,1736361064427,-3022.51,0.00011715,2]
[348165689,1736361064436,-3022.51,0.00011989,2]
[348165690,1736361064446,-19255.0950443,0.000123,2]
[348165691,1736361064458,-826.31590867,0.000123,2]
[348165692,1736361064470,-304.166235,0.000123,2]
[348165693,1736361064484,-696.3453855,0.000123,2]
[348165694,1736361064506,-534.0425677,0.000123,2]
[348165695,1736361064517,-430.3439993,0.000123,2]
[348165696,1736361064528,-663.24,0.000123,2]
[348165697,1736361064540,-3674.76568076,0.000123,2]
[348165698,1736361064551,-472.57697001,0.000123,2]
[348165699,1736361064569,-58300.65231202,0.000123,2]
[348165700,1736361064585,-754.46834416,0.000123,2]
[348165701,1736361064630,-500.0,0.00011677,2]
[348165702,1736361064640,-108.11212382,0.000123,2]
[348165703,1736361064651,-669.0756367,0.000123,2]
[348165704,1736361064664,-755.799995,0.000123,2]
[348165705,1736361064678,-3792.70790478,0.000123,2]
[348165706,1736361064691,-2330.48825944,0.000123,2]
[348165707,1736361064704,-436.96,0.000123,2]
[348165708,1736361064715,-501.85,0.000123,2]
[348165709,1736361064727,-526.9599998,0.000123,2]
[348165710,1736361065233,-510.57,9.899e-05,2]
[348165711,1736361065244,-500.0,9.899e-05,2]
[348165712,1736361065254,-168.99290355,9.899e-05,2]
[348165713,1736361065266,-329.49060594,9.899e-05,2]
[348165714,1736361065278,-1.51649051,9.899e-05,2]
[348165715,1736361065287,-803.33967265,0.0001,2]
[348165716,1736361065297,-510.57,0.00010173,2]
[348165717,1736361065307,-576.97,0.00010173,2]
[348165718,1736361065317,-596.42,0.00010173,2]
[348165719,1736361065326,-510.57,0.00010447,2]
[348165720,1736361065337,-510.57,0.00010721,2]
[348165721,1736361065347,-500.0,0.00010893,2]
[348165722,1736361065357,-510.57,0.00010995,2]
[348165723,1736361065370,-500.0,0.00011167,2]
[348165724,1736361065379,-510.57,0.00011269,2]
[348165725,1736361065389,-500.0,0.00011441,2]
[348165726,1736361065398,-510.57,0.00011543,2]
[348165727,1736361065409,-500.0,0.00011715,2]
[348165728,1736361065420,-500.0,0.00011951,2]
[348165729,1736361065430,-500.0,0.00011989,2]
[348165730,1736361065440,-500.0,0.00012225,2]
[348165731,1736361065450,-3022.51,0.00012263,2]
[348165732,1736361065460,-500.0,0.00012263,2]
[348165733,1736361065470,-766681.84270053,0.000123,2]
[348165734,1736361065506,-494.14,0.00011817,2]
[348165735,1736361065523,-16.43,0.00011817,2]
[348165736,1736361065532,-300.82,0.000123,2]
[348165737,1736361065543,-33237.02019729,0.000123,2]
[348165738,1736361065555,-24407.45537696,0.000123,2]
[348165739,1736361065568,-850.0830851,0.000123,2]
[348165740,1736361065580,-174160.80477405,0.000123,2]
[348165741,1736361066093,-500.0,9.899e-05,2]
[348165742,1736361066103,-500.0,0.00010173,2]
[348165743,1736361066113,-500.0,0.00010346,2]
[348165744,1736361066127,-500.0,0.00010447,2]
[348165745,1736361066137,-500.0,0.0001062,2]
[348165746,1736361066147,-500.0,0.00010721,2]
[348165747,1736361066157,-634.0,0.00011598,2]
[348165748,1736361066166,-394.79022896,0.00011992,2]
[348165749,1736361066176,-510.57,0.00012091,2]
[348165750,1736361066185,-9688.21123204,0.000123,2]
[348165751,1736361066198,-1581.57987107,0.000123,2]
[348165752,1736361066209,-21947.859396,0.000123,2]
[348165753,1736361066219,-472.60888124,0.000123,2]
[348165754,1736361066231,-1490.8323986,0.000123,2]
[348165755,1736361066242,-2717.39685988,0.000123,2]
[348165756,1736361066268,-500.0,0.00010995,2]
[348165757,1736361066278,-244429.45913905,0.000123,2]
[348165758,1736361066289,-5351.94440153,0.000123,2]
[348165759,1736361066301,-5651.31606441,0.000123,2]
[348165760,1736361066313,-1499.46,0.000123,2]
[348165761,1736361066324,-1026.63930809,0.000123,2]
[348165762,1736361066336,-804.74107808,0.000123,2]
[348165763,1736361066347,-2482.50469129,0.000123,2]
[348165764,1736361066358,-6050.9999995,0.000123,2]
[348165765,1736361066371,-1662584.83774701,0.000123,2]
[348165766,1736361066382,-500.51906614,0.000123,2]
[348165767,1736361066394,-57022.9465228,0.000123,2]
[348165768,1736361066405,-1026.2174905,0.000123,2]
[348165769,1736361066416,-1668.015,0.000123,2]
[348165770,1736361066434,-1325.2359382,0.000123,2]
[348165771,1736361066456,-1828.433986,0.000123,2]
[348165772,1736361066468,-983.00737518,0.000123,2]
[348165773,1736361066480,-14271.5,0.000123,2]
[348165774,1736361066492,-4044.07405039,0.000123,2]
[348165775,1736361066503,-3607.44868303,0.000123,2]
[348165777,1736361479501,-8222.72,9.343e-05,2]
[348165778,1736361484010,-300.0,9.342e-05,2]
[348165779,1736361484036,-9700.0,9.343e-05,2]
[348165780,1736361489454,-5977.28,9.343e-05,2]
[348165781,1736361489475,-165.67,9.426e-05,2]
[348165782,1736361489495,-171.56,9.623e-05,2]
[348165783,1736361489516,-1008.3536941,9.799e-05,2]
[348165784,1736361489538,-500.0,9.799e-05,2]
[348165785,1736361489558,-500.0,9.799e-05,2]
[348165786,1736361489578,-1000.0,9.799e-05,2]
[348165787,1736361489599,-500.0,9.799e-05,2]
[348165788,1736361489620,-177.1363059,9.799e-05,2]
[348165789,1736361494851,-322.8636941,9.799e-05,2]
[348165790,1736361494874,-1002.76,9.799e-05,2]
[348165791,1736361494896,-2552.1135,9.8e-05,2]
[348165792,1736361494920,-150.0,9.871e-05,2]
[348165793,1736361494944,-5000.0,9.872e-05,2]
[348165794,1736361494967,-500.0,9.899e-05,2]
[348165795,1736361494989,-472.2628059,9.899e-05,2]
[348165796,1736361498894,-27.7371941,9.899e-05,2]
[348165797,1736361498918,-500.0,9.899e-05,2]
[348165798,1736361498942,-500.0,9.899e-05,2]
[348165799,1736361498964,-500.0,9.899e-05,2]
[348165800,1736361498987,-500.0,9.899e-05,2]
[348165801,1736361499009,-500.0,9.899e-05,2]
[348165802,1736361499031,-500.0,9.899e-05,2]
[348165803,1736361499053,-500.0,9.899e-05,2]
[348165804,1736361499079,-500.0,9.899e-05,2]
[348165805,1736361499100,-503.58159117,9.899e-05,2]
[348165806,1736361499124,-500.0,9.899e-05,2]
[348165807,1736361499147,-500.0,9.899e-05,2]
[348165808,1736361499169,-500.0,9.899e-05,2]
[348165809,1736361499191,-500.0,9.899e-05,2]
[348165810,1736361499213,-547.82,9.899e-05,2]
[348165811,1736361499236,-500.0,9.899e-05,2]
[348165812,1736361499257,-501.60439625,9.899e-05,2]
[348165813,1736361499279,-500.0,9.899e-05,2]
[348165814,1736361499302,-500.0,9.899e-05,2]
[348165815,1736361499324,-500.0,9.899e-05,2]
[348165816,1736361499347,-419.25681848,9.899e-05,2]
[348165817,1736361503163,-80.74318152,9.899e-05,2]
[348165818,1736361503190,-500.0,9.899e-05,2]
[348165819,1736361503213,-630.74253525,9.899e-05,2]
[348165820,1736361503235,-500.0,9.899e-05,2]
[348165821,1736361503256,-500.0,9.899e-05,2]
[348165822,1736361503278,-500.0,9.899e-05,2]
[348165823,1736361503300,-500.0,9.899e-05,2]
[348165824,1736361503323,-500.0,9.899e-05,2]
[348165825,1736361503344,-500.0,9.899e-05,2]
[348165826,1736361503367,-500.0,9.899e-05,2]
[348165827,1736361503390,-500.0,9.899e-05,2]
[348165828,1736361503411,-505.19170021,9.899e-05,2]
[348165829,1736361503435,-500.0,9.899e-05,2]
[348165830,1736361503456,-500.0,9.899e-05,2]
[348165831,1736361503479,-502.92973222,9.899e-05,2]
[348165832,1736361503501,-500.0,9.899e-05,2]
[348165833,1736361503522,-501.7174243,9.899e-05,2]
[348165834,1736361503544,-500.0,9.899e-05,2]
[348165835,1736361503566,-500.0,9.899e-05,2]
[348165836,1736361503587,-500.0,9.899e-05,2]
[348165837,1736361503610,-278.6754265,9.899e-05,2]
[348165838,1736361506981,-229.02073337,9.899e-05,2]
[348165839,1736361507007,-500.0,9.899e-05,2]
[348165840,1736361507033,-500.0,9.899e-05,2]
[348165841,1736361507056,-572.43,9.899e-05,2]
[348165842,1736361507081,-500.0,9.899e-05,2]
[348165843,1736361507103,-500.0,9.899e-05,2]
[348165844,1736361507125,-500.0,9.899e-05,2]
[348165845,1736361507147,-500.0,9.899e-05,2]
[348165846,1736361507170,-500.0,9.899e-05,2]
[348165847,1736361507193,-500.0,9.899e-05,2]
[348165848,1736361507214,-500.0,9.899e-05,2]
[348165849,1736361507236,-500.0,9.899e-05,2]
[348165850,1736361507258,-500.0,9.899e-05,2]
[348165851,1736361507280,-500.0,9.899e-05,2]
[348165852,1736361507303,-500.0,9.899e-05,2]
[348165853,1736361507326,-500.0,9.899e-05,2]
[348165854,1736361507349,-500.0,9.899e-05,2]
[348165855,1736361507371,-500.0,9.899e-05,2]
[348165856,1736361507394,-500.0,9.899e-05,2]
[348165857,1736361507415,-500.0,9.899e-05,2]
[348165858,1736361507438,-198.54926663,9.899e-05,2]
[348165859,1736361507565,1064.89,0.00015616,64]
[348165860,1736361507727,1064.89,0.00015616,70]
[348165861,1736361508098,1064.89,0.00015616,76]
[348165862,1736361508429,1064.89,0.00015616,82]
[348165863,1736361508597,1064.89,0.00015616,88]
[348165864,1736361508986,1064.89,0.00015616,95]
[348165865,1736361509036,1064.89,0.00015616,101]
[348165866,1736361509249,1064.89,0.00015616,107]
[348165867,1736361509483,1064.89,0.00015616,113]
[348165868,1736361509742,1064.89,0.00015616,120]
[348165869,1736361511570,-250.0,9.375e-05,2]
[348165870,1736361511592,-301.45073337,9.899e-05,2]
[348165871,1736361511613,-733.72,9.899e-05,2]
[348165872,1736361511633,-434.26354156,9.899e-05,2]
[348165873,1736361511656,-500.0,9.899e-05,2]
[348165874,1736361511677,-500.0,9.899e-05,2]
[348165875,1736361511703,-500.0,9.899e-05,2]
[348165876,1736361511740,-500.0,9.899e-05,2]
[348165877,1736361511763,-500.0,9.899e-05,2]
[348165878,1736361511787,-500.0,9.899e-05,2]
[348165879,1736361511810,-500.0,9.899e-05,2]
[348165880,1736361511833,-500.0,9.899e-05,2]
[348165881,1736361511856,-506.96300698,9.899e-05,2]
[348165882,1736361511879,-500.0,9.899e-05,2]
[348165883,1736361511902,-500.0,9.899e-05,2]
[348165884,1736361511925,-500.0,9.899e-05,2]
[348165885,1736361511950,-500.0,9.899e-05,2]
[348165886,1736361511973,-500.0,9.899e-05,2]
[348165887,1736361511996,-500.0,9.899e-05,2]
[348165888,1736361512020,-642.25,9.899e-05,2]
[348165889,1736361512043,-131.35271809,9.899e-05,2]
[348165890,1736361516056,-368.64728191,9.899e-05,2]
[348165891,1736361516086,-500.0,9.899e-05,2]
[348165892,1736361516114,-500.0,9.899e-05,2]
[348165893,1736361516141,-500.0,9.899e-05,2]
[348165894,1736361516167,-500.0,9.899e-05,2]
[348165895,1736361516193,-500.0,9.899e-05,2]
[348165896,1736361516226,-500.0,9.899e-05,2]
[348165897,1736361516250,-500.0,9.899e-05,2]
[348165898,1736361516275,-500.0,9.899e-05,2]
[348165899,1736361516297,-549.25,9.899e-05,2]
[348165900,1736361516320,-500.0,9.899e-05,2]
[348165901,1736361516341,-500.0,9.899e-05,2]
[348165902,1736361516363,-608.9075737,9.899e-05,2]
[348165903,1736361516387,-500.0,9.899e-05,2]
[348165904,1736361516410,-500.0,9.899e-05,2]
[348165905,1736361516433,-500.0,9.899e-05,2]
[348165906,1736361516458,-634.37,9.899e-05,2]
[348165907,1736361516480,-500.0,9.899e-05,2]
[348165908,1736361516502,-500.0,9.899e-05,2]
[348165909,1736361516524,-338.82514439,9.899e-05,2]
[348165910,1736361519948,-161.17485561,9.899e-05,2]
[348165911,1736361519970,-500.0,9.899e-05,2]
[348165912,1736361519992,-500.0,9.899e-05,2]
[348165913,1736361520014,-643.59205666,9.899e-05,2]
[348165914,1736361520037,-500.0,9.899e-05,2]
[348165915,1736361520060,-500.0,9.899e-05,2]
[348165916,1736361520086,-500.0,9.899e-05,2]
[348165917,1736361520108,-500.0,9.899e-05,2]
[348165918,1736361520130,-500.0,9.899e-05,2]
[348165919,1736361520152,-500.0,9.899e-05,2]
[348165920,1736361520174,-500.0,9.899e-05,2]
[348165921,1736361520196,-500.0,9.899e-05,2]
[348165922,1736361520218,-500.0,9.899e-05,2]
[348165923,1736361520240,-718.61,9.899e-05,2]
[348165924,1736361520262,-500.0,9.899e-05,2]
[348165925,1736361520285,-2476.62308773,9.899e-05,2]
[348165926,1736361524540,-146.01691227,9.899e-05,2]
[348165927,1736361524564,-500.0,9.899e-05,2]
[348165928,1736361524588,-500.0,9.899e-05,2]
[348165929,1736361524619,-500.0,9.899e-05,2]
[348165930,1736361524643,-500.0,9.899e-05,2]
[348165931,1736361524666,-500.0,9.899e-05,2]
[348165932,1736361524690,-500.0,9.899e-05,2]
[348165933,1736361524725,-500.0,9.899e-05,2]
[348165934,1736361524749,-346.36090801,9.899e-05,2]
[348165935,1736361524773,-2052.99,9.899e-05,2]
[348165936,1736361524800,-500.0,9.899e-05,2]
[348165937,1736361524824,-500.0,9.899e-05,2]
[348165938,1736361524846,-500.0,9.899e-05,2]
[348165939,1736361524868,-500.0,9.899e-05,2]
[348165940,1736361524891,-500.0,9.899e-05,2]
[348165941,1736361524913,-649.31,9.899e-05,2]
[348165942,1736361524939,-500.0,9.899e-05,2]
[348165943,1736361524962,-305.32217972,9.899e-05,2]
[348165944,1736361530055,-1985.17782028,9.899e-05,2]
[348165945,1736361530079,-500.0,9.899e-05,2]
[348165946,1736361530102,-500.0,9.899e-05,2]
[348165947,1736361530125,-500.0,9.899e-05,2]
[348165948,1736361530148,-500.0,9.899e-05,2]
[348165949,1736361530171,-500.0,9.899e-05,2]
[348165950,1736361530198,-500.0,9.899e-05,2]
[348165951,1736361530225,-500.0,9.899e-05,2]
[348165952,1736361530248,-500.0,9.899e-05,2]
[348165953,1736361530270,-537.76163464,9.899e-05,2]
[348165954,1736361530297,-500.0,9.899e-05,2]
[348165955,1736361530318,-500.0,9.899e-05,2]
[348165956,1736361530339,-502.80646838,9.899e-05,2]
[348165957,1736361530361,-500.0,9.899e-05,2]
[348165958,1736361530382,-500.0,9.899e-05,2]
[348165959,1736361530404,-500.0,9.899e-05,2]
[348165960,1736361530430,-474.2540767,9.899e-05,2]
[348165961,1736361534918,-25.7459233,9.899e-05,2]
[348165962,1736361534941,-526.08623902,9.899e-05,2]
[348165963,1736361534963,-500.0,9.899e-05,2]
[348165964,1736361534989,-500.0,9.899e-05,2]
[348165965,1736361535013,-500.0,9.899e-05,2]
[348165966,1736361535035,-500.0,9.899e-05,2]
[348165967,1736361535058,-500.0,9.899e-05,2]
[348165968,1736361535080,-500.0,9.899e-05,2]
[348165969,1736361535104,-500.0,9.899e-05,2]
[348165970,1736361535128,-500.0,9.899e-05,2]
[348165971,1736361535152,-564.95,9.899e-05,2]
[348165972,1736361535175,-500.0,9.899e-05,2]
[348165973,1736361535201,-500.0,9.899e-05,2]
[348165974,1736361535226,-500.0,9.899e-05,2]
[348165975,1736361535250,-500.0,9.899e-05,2]
[348165976,1736361535273,-500.0,9.899e-05,2]
[348165977,1736361535296,-500.0,9.899e-05,2]
[348165978,1736361535319,-500.0,9.899e-05,2]
[348165979,1736361535343,-984.39,9.899e-05,2]
[348165980,1736361535366,-398.82783768,9.899e-05,2]
[348165981,1736361539380,-101.17216232,9.899e-05,2]
[348165982,1736361539402,-500.0,9.899e-05,2]
[348165983,1736361539425,-500.0,9.899e-05,2]
[348165984,1736361539450,-500.0,9.899e-05,2]
[348165985,1736361539474,-500.0,9.899e-05,2]
[348165986,1736361539496,-618.67,9.899e-05,2]
[348165987,1736361539518,-500.0,9.899e-05,2]
[348165988,1736361539539,-536.31,9.899e-05,2]
[348165989,1736361539561,-500.0,9.899e-05,2]
[348165990,1736361539583,-705.63,9.899e-05,2]
[348165991,1736361539606,-600.929021,9.899e-05,2]
[348165992,1736361539628,-500.0,9.899e-05,2]
[348165993,1736361539650,-500.0,9.899e-05,2]
[348165994,1736361539676,-161.062745,9.899e-05,2]
[348165995,1736361539701,-500.0,9.899e-05,2]
[348165996,1736361539730,-547.74,9.899e-05,2]
[348165997,1736361539754,-172.58338853,9.899e-05,2]
[348165998,1736361539778,-500.0,9.899e-05,2]
[348165999,1736361539802,-500.0,9.899e-05,2]
[348166000,1736361539824,-500.0,9.899e-05,2]
[348166001,1736361539846,-500.0,9.899e-05,2]
[348166002,1736361539870,-55.90268315,9.899e-05,2]